bitfinex/quotes_ETHUSD_20240907
["timestamp","ask_amount","ask_price","bid_price","bid_amount"]
[1725693040508,4.37354,2286.5,2286.4,0.12538284]
[1725693041410,4.37322,2286.7,2286.4,0.12538284]
[1725693041704,4.37333,2286.6,2286.4,0.12538284]
[1725693043409,4.37322,2286.7,2286.4,0.12538284]
[1725693043714,4.37347,2286.6,2286.4,0.12538284]
[1725693044596,4.37347,2286.6,2286.2,3.91657739]
[1725693044797,4.37347,2286.6,2286.5,0.12538284]
[1725693045009,4.37347,2286.6,2286.2,3.91657739]
[1725693045184,4.37347,2286.6,2286.5,0.12538284]
[1725693045383,4.37311,2286.8,2286.4,0.08746203]
[1725693045599,4.37285,2286.9,2286.5,0.12503897]
[1725693045893,8.74569,2286.9,2286.5,0.12503897]
[1725693046615,4.37284,2286.9,2286.6,19.98152128]
[1725693046818,6.73219,2287.1,2286.6,19.98152128]
[1725693046819,8.74496,2287.1,2286.6,19.98152128]
[1725693047144,4.37255,2287.0,2286.7,20.01910602]
[1725693047326,4.37255,2287.0,2286.8,0.08744852]
[1725693047728,4.37255,2287.0,2286.9,0.12503897]
[1725693050348,4.37209,2287.3,2286.9,22.42340602]
[1725693050651,6.63732,2287.5,2287.0,0.08743754]
[1725693050869,4.37139,2287.6,2287.1,19.89406705]
[1725693051072,4.37139,2287.6,2287.2,19.98149569]
[1725693051231,4.37161,2287.5,2287.3,0.08742866]
[1725693051657,4.37161,2287.5,2287.4,0.12447868]
[1725693052443,8.74322,2287.5,2287.4,0.12447868]
[1725693052647,12.109702,2287.5,2287.4,0.12447868]
[1725693052857,8.74392,2287.3,2287.2,19.89406705]
[1725693053174,8.74392,2287.3,2287.2,20.01802383]
[1725693054279,8.74392,2287.3,2287.2,0.12395678]
[1725693054693,4.37267,2287.0,2286.7,19.89406705]
[1725693054974,4.37267,2287.0,2286.8,19.89406705]
[1725693055648,4.37273,2286.9,2286.8,19.89406705]
[1725693057139,8.74536,2287.0,2286.8,19.89406705]
[1725693057376,4.37182,2287.4,2286.8,19.89406705]
[1725693057377,4.37237,2287.1,2286.8,19.89406705]
[1725693057576,8.74483,2287.1,2286.8,19.89406705]
[1725693057734,4.37237,2287.1,2286.8,19.89406705]
[1725693058139,4.3727,2287.0,2286.8,19.89406705]
[1725693060178,4.3727,2287.0,2286.9,19.89406705]
[1725693064361,4.3727,2287.0,2286.9,20.01824017]
[1725693066008,19.75616,2287.0,2286.9,0.12417312]
[1725693066181,4.37387,2286.3,2286.2,7.41]
[1725693066378,6.63942,2286.4,2286.1,19.89406705]
[1725693066379,4.37407,2286.2,2286.1,19.89406705]
[1725693068311,4.83159554,2286.6,2286.2,2.4043]
[1725693068312,0.45826554,2286.6,2286.2,2.4043]
[1725693068494,4.37282,2286.9,2286.4,2.4043]
[1725693068697,4.37247,2287.1,2286.6,2.3527]
[1725693068898,4.37247,2287.1,2286.7,0.63744631]
[1725693069090,4.37247,2287.1,2286.8,0.08744631]
[1725693069285,4.83033445,2287.3,2286.8,0.38646094]
[1725693069489,4.83033445,2287.3,2286.9,2.9027]
[1725693069697,4.83033445,2287.3,2287.0,19.98150594]
[1725693069698,8.74425,2287.3,2287.0,19.98150594]
[1725693069918,8.74419,2287.3,2287.0,19.98150594]
[1725693070211,4.37207,2287.3,2287.0,19.98150594]
[1725693070709,4.37206,2287.3,2287.0,19.98150594]
[1725693071316,4.82984229,2287.5,2287.1,19.89406705]
[1725693071470,4.37178,2287.4,2287.2,0.08743111]
[1725693071923,9.20155229,2287.5,2287.2,0.08743111]
[1725693072279,0.45813229,2287.5,2287.1,19.89406705]
[1725693072481,4.37209,2287.3,2287.1,19.89406705]
[1725693073829,4.37209,2287.3,2287.2,0.1075574]
[1725693075113,4.37209,2287.3,2287.2,20.00162445]
[1725693083032,8.74416,2287.3,2287.2,20.00162445]
[1725693085025,4.37121,2287.7,2287.2,22.35432445]
[1725693085224,4.3716,2287.5,2287.3,0.08742779]
[1725693085688,4.3716,2287.5,2287.4,0.10648822]
[1725693085990,4.3716,2287.5,2287.4,20.00055527]
[1725693087441,4.37139,2287.6,2287.4,20.00055527]
[1725693088187,4.37158,2287.5,2287.4,20.00055527]
[1725693088902,11.12266,2287.5,2287.4,20.00055527]
[1725693090118,11.12266,2287.5,2287.4,0.10648822]
[1725693090327,4.37196,2287.3,2287.2,19.89406705]
[1725693090529,4.37196,2287.3,2287.2,20.00021166]
[1725693091248,4.37178,2287.4,2287.2,20.00021166]
[1725693091395,8.74369,2287.4,2287.2,20.00021166]
[1725693091599,4.37196,2287.3,2287.2,20.00021166]
[1725693099446,8.74371,2287.4,2287.2,20.00021166]
[1725693099607,4.37178,2287.4,2287.2,20.00021166]
[1725693101546,4.3716,2287.5,2287.2,20.00021166]
[1725693101920,4.3716,2287.5,2287.2,21.98964247]
[1725693102108,4.3715,2287.6,2287.3,22.24769821]
[1725693102446,8.74299,2287.6,2287.4,0.10620824]
[1725693103006,4.37148,2287.6,2287.4,0.10620824]
[1725693103254,8.74305,2287.6,2287.4,0.10620824]
[1725693104934,4.37158,2287.5,2287.4,0.10620824]
[1725693107198,8.74316,2287.5,2287.4,0.10620824]
[1725693107372,9.617438,2287.5,2287.4,0.10620824]
[1725693108467,9.617438,2287.5,2287.0,19.89406705]
[1725693108468,4.37181,2287.4,2287.0,19.89406705]
[1725693108654,4.37216,2287.2,2287.0,19.89406705]
[1725693108861,4.37216,2287.2,2287.1,1.52335955]
[1725693109277,4.37197,2287.3,2287.1,1.52335955]
[1725693109486,4.37197,2287.3,2287.1,0.10613188]
[1725693109651,4.37181,2287.4,2287.1,2.52897161]
[1725693109840,4.37181,2287.4,2287.2,0.55]
[1725693110248,4.37181,2287.4,2287.3,0.10617006]
[1725693110464,4.37181,2287.4,2287.2,0.55]
[1725693110685,4.37181,2287.4,2287.3,0.10617006]
[1725693111082,4.37181,2287.4,2287.2,0.55]
[1725693111381,4.37181,2287.4,2287.3,0.10617006]
[1725693111747,4.37181,2287.4,2287.2,0.55]
[1725693111948,4.37181,2287.4,2287.3,0.10611916]
[1725693112189,4.37181,2287.4,2287.2,0.55]
[1725693112561,4.37181,2287.4,2287.3,0.10611916]
[1725693112787,8.74367,2287.4,2287.2,0.55]
[1725693112955,4.37181,2287.4,2287.2,0.55]
[1725693113283,4.37181,2287.4,2287.3,0.10615733]
[1725693113673,4.37181,2287.4,2287.1,0.91017739]
[1725693113867,4.37181,2287.4,2287.3,0.10615733]
[1725693114083,4.37196,2287.3,2287.1,0.99761516]
[1725693114287,4.37196,2287.3,2287.2,3.80844542]
[1725693115327,8.74392,2287.3,2287.2,3.80844542]
[1725693116880,4.37215,2287.2,2287.0,0.99761905]
[1725693117213,4.37215,2287.2,2287.1,3.80866407]
[1725693118310,4.37215,2287.2,2287.1,4.71884146]
[1725693119103,4.37215,2287.2,2287.1,3.80866407]
[1725693119315,4.37215,2287.2,2287.1,4.71884146]
[1725693119477,4.37196,2287.3,2287.1,4.71884146]
[1725693119677,4.37196,2287.3,2287.2,3.80866407]
[1725693120086,4.37196,2287.3,2287.2,23.70866407]
[1725693121025,4.37196,2287.3,2287.2,23.70849098]
[1725693124369,4.37196,2287.3,2287.2,24.61866837]
[1725693124566,4.37196,2287.3,2287.2,24.72520747]
[1725693124866,4.37196,2287.3,2287.2,23.81503008]
[1725693125644,4.37196,2287.3,2287.2,23.8150471]
[1725693127070,8.74402,2287.3,2287.2,23.8150471]
[1725693127276,15.55718272,2287.3,2287.2,1.6299423]
[1725693127471,22.9647971,2287.3,2287.2,9.1e-06]
[1725693127770,8.74774,2286.3,2286.2,20.81017739]
[1725693127982,4.37387,2286.3,2286.2,4.72049797]
[1725693128279,8.74723,2286.5,2286.2,4.72360281]
[1725693128454,8.74723,2286.5,2286.3,1.52412823]
[1725693128653,4.37374,2286.4,2286.1,3.24868223]
[1725693128829,4.37374,2286.4,2286.2,3.80998828]
[1725693129026,4.37359,2286.5,2286.1,3.33615574]
[1725693129235,8.74723,2286.5,2286.2,3.8099971]
[1725693129432,1.56670072,2286.6,2286.0,20.81328223]
[1725693129665,1.56670072,2286.6,2286.1,4.36003971]
[1725693129894,4.37407,2286.2,2286.0,20.81328223]
[1725693130109,4.37407,2286.2,2286.1,3.81005098]
[1725693130309,4.37407,2286.2,2286.0,20.81328223]
[1725693130591,4.37407,2286.2,2286.1,1.52403541]
[1725693130825,4.37407,2286.2,2286.1,3.81004004]
[1725693131101,4.37407,2286.2,2286.1,1.52403541]
[1725693131390,4.37407,2286.2,2286.0,19.9]
[1725693131554,4.37371,2286.4,2286.0,19.9]
[1725693131753,4.37371,2286.4,2286.1,3.89744695]
[1725693131958,4.37371,2286.4,2286.2,1.52401049]
[1725693132186,4.37371,2286.4,2286.1,0.08747321]
[1725693133015,4.37388,2286.3,2286.1,0.08747321]
[1725693133154,4.37371,2286.4,2286.1,0.08747321]
[1725693134984,4.37371,2286.4,2286.2,0.09800193]
[1725693138034,4.37371,2286.4,2286.3,19.9]
[1725693138255,4.37371,2286.4,2286.3,19.99793825]
[1725693139524,11.16179,2286.4,2286.3,19.99793825]
[1725693140240,12.715301,2286.4,2286.3,19.99793825]
[1725693142361,11.16179,2286.4,2286.3,19.99793825]
[1725693142519,8.74749,2286.4,2286.3,19.99793825]
[1725693144027,8.74749,2286.4,2286.3,0.09793825]
[1725693144225,8.74749,2286.4,2286.2,19.9]
[1725693144226,4.37387,2286.3,2286.2,19.9]
[1725693144456,4.37387,2286.3,2286.2,19.99832033]
[1725693144827,4.37371,2286.4,2286.2,22.47002033]
[1725693145068,8.74753,2286.4,2286.2,22.47002033]
[1725693145301,8.74751,2286.4,2286.2,22.47002033]
[1725693145860,4.37371,2286.4,2286.2,22.47002033]
[1725693146060,2.4143,2286.9,2286.3,0.08747308]
[1725693146300,2.4143,2286.9,2286.4,20.45]
[1725693146301,8.74645,2286.7,2286.4,20.45]
[1725693146761,8.74645,2286.7,2286.5,0.18566674]
[1725693146762,4.37322,2286.7,2286.5,0.18566674]
[1725693147159,8.74645,2286.7,2286.5,0.18566674]
[1725693147392,4.37321,2286.7,2286.5,0.0982057]
[1725693147977,8.74644,2286.7,2286.5,0.0982057]
[1725693148308,8.74642,2286.7,2286.5,0.0982057]
[1725693148788,4.3733,2286.6,2286.5,0.0982057]
[1725693150064,4.3733,2286.6,2286.5,19.9982057]
[1725693151305,8.7466,2286.6,2286.5,19.9982057]
[1725693156089,8.7466,2286.6,2286.5,0.0982057]
[1725693156394,4.37368,2286.4,2286.3,19.9]
[1725693156700,3.45936132,2286.4,2286.3,19.9]
[1725693157269,3.45936132,2286.4,2286.3,20.07904346]
[1725693157493,3.45936132,2286.4,2286.3,22.42343084]
[1725693157713,3.45936132,2286.4,2286.3,20.07903084]
[1725693158016,3.45936132,2286.4,2286.3,19.9]
[1725693159071,7.83304132,2286.4,2286.3,19.9]
[1725693159272,14.47162132,2286.4,2286.3,19.9]
[1725693161955,4.37445,2286.1,2285.9,19.9]
[1725693162130,4.37445,2286.0,2285.9,19.9]
[1725693165326,4.37445,2286.1,2285.9,19.9]
[1725693165652,8.7489,2286.1,2285.9,19.9]
[1725693166055,4.37445,2286.1,2285.9,19.9]
[1725693166467,4.37437,2286.1,2285.9,19.9]
[1725693166763,4.37436,2286.1,2286.0,19.9]
[1725693169524,4.37436,2286.1,2286.0,19.99825666]
[1725693171585,4.37436,2286.1,2286.0,21.52240149]
[1725693172379,4.37436,2286.1,2286.0,23.80865339]
[1725693173249,8.74872,2286.1,2286.0,21.52241535]
[1725693173575,8.74872,2286.1,2286.0,23.80866717]
[1725693173781,8.74872,2286.1,2286.0,21.52241535]
[1725693174164,8.74872,2286.1,2286.0,23.80870783]
[1725693174481,8.74872,2286.1,2286.0,23.80868846]
[1725693174641,8.74872,2286.1,2286.0,1.62241535]
[1725693174841,8.74872,2286.1,2286.0,3.90873714]
[1725693175143,8.74872,2286.1,2286.0,3.90866973]
[1725693175569,8.74872,2286.1,2286.0,0.09825666]
[1725693175879,8.74872,2286.1,2286.0,3.90865002]
[1725693176643,4.37436,2286.1,2286.0,3.90865002]
[1725693176983,4.37391,2286.3,2286.0,3.90865002]
[1725693176984,4.37408,2286.2,2286.0,4.82193225]
[1725693177285,4.37426,2286.1,2286.0,0.09825666]
[1725693177583,4.37426,2286.1,2286.0,3.90857652]
[1725693178591,4.37361,2286.5,2286.0,9.19624875]
[1725693178801,2.3046,2286.8,2286.1,7.21898891]
[1725693179004,4.37363,2286.5,2286.2,24.62271521]
[1725693179160,4.37363,2286.5,2286.3,3.81031986]
[1725693179494,4.37363,2286.5,2286.2,20.81239535]
[1725693179696,4.37363,2286.5,2286.4,0.09823118]
[1725693179862,4.37363,2286.5,2286.2,20.81239535]
[1725693180062,4.37363,2286.5,2286.3,3.9080953]
[1725693180368,4.37336,2286.6,2286.3,0.09823118]
[1725693180578,4.37303,2286.8,2286.4,1.52388831]
[1725693180805,4.37274,2286.9,2286.5,3.89680677]
[1725693181104,4.37312,2286.7,2286.5,19.99797648]
[1725693181475,4.3733,2286.6,2286.5,19.99797648]
[1725693181670,4.3733,2286.6,2286.5,21.52176342]
[1725693182361,4.3733,2286.6,2286.5,23.80741604]
[1725693183197,4.3733,2286.6,2286.5,23.80747982]
[1725693183998,8.74605,2286.8,2286.5,23.80741986]
[1725693184177,4.37315,2286.7,2286.5,19.99797648]
[1725693184681,4.37296,2286.8,2286.6,1.52373804]
[1725693184881,4.37296,2286.8,2286.6,0.09772182]
[1725693185903,4.37296,2286.8,2286.7,19.9]
[1725693186073,4.37296,2286.8,2286.7,19.99768363]
[1725693188382,4.37273,2286.9,2286.7,19.99768363]
[1725693189107,4.37292,2286.8,2286.7,19.99768363]
[1725693191307,4.37273,2286.9,2286.7,19.99768363]
[1725693191512,8.74558,2286.9,2286.7,19.99768363]
[1725693191708,8.74557,2286.9,2286.7,19.99768363]
[1725693191888,8.74557,2286.9,2286.8,19.9]
[1725693192092,8.74557,2286.9,2286.8,19.99671593]
[1725693195809,4.37273,2286.9,2286.8,19.99671593]
[1725693197595,4.37206,2287.3,2286.9,2.3712]
[1725693197596,4.37208,2287.3,2286.9,2.3712]
[1725693197801,4.37208,2287.3,2286.9,2.45864389]
[1725693198003,4.37226,2287.2,2287.0,0.09667774]
[1725693198204,4.37234,2287.1,2287.0,19.99667774]
[1725693198431,4.37234,2287.1,2287.0,19.9]
[1725693198618,8.74468,2287.1,2287.0,19.99651227]
[1725693201017,2.4284,2287.4,2287.0,19.99651227]
[1725693201204,17.11310469,2287.1,2287.0,19.99651227]
[1725693203724,11.175,2286.6,2286.5,7.286]
[1725693203960,8.74698,2286.5,2286.4,19.9]
[1725693206835,4.37424,2286.2,2286.0,19.9]
[1725693207029,4.37424,2286.2,2286.1,19.9]
[1725693208474,8.74848,2286.2,2286.1,19.9]
[1725693209515,4.37354,2286.5,2286.1,22.392]
[1725693209718,4.37354,2286.5,2286.2,2.16140034]
[1725693209963,4.37373,2286.4,2286.2,0.63746916]
[1725693210117,4.37373,2286.4,2286.2,0.55]
[1725693210761,4.37387,2286.3,2286.1,19.9]
[1725693210920,4.37387,2286.3,2286.2,1.52395864]
[1725693211119,3.45951756,2286.3,2286.2,1.52395864]
[1725693211359,3.45951756,2286.3,2286.2,1.60911959]
[1725693211532,8.74725,2286.5,2286.2,3.8949458]
[1725693211731,4.37361,2286.5,2286.3,4.01587589]
[1725693211939,4.37361,2286.5,2286.3,2.492]
[1725693212131,4.37361,2286.5,2286.4,0.08516095]
[1725693213085,4.37361,2286.5,2286.4,19.98516095]
[1725693215359,4.37361,2286.5,2286.4,21.50894851]
[1725693215861,4.37361,2286.5,2286.4,19.98516095]
[1725693215862,8.74721,2286.5,2286.4,19.98516095]
[1725693223564,13.12081,2286.5,2286.4,19.98516095]
[1725693225860,15.59111,2286.5,2286.4,19.98516095]
[1725693228064,2.4703,2287.4,2286.5,2.492]
[1725693228296,4.37275,2286.9,2286.6,24.34732861]
[1725693228593,4.37275,2286.9,2286.7,3.80931894]
[1725693228760,4.37275,2286.9,2286.7,0.08745237]
[1725693228963,4.37275,2286.9,2286.8,1.60831208]
[1725693229589,8.74559,2286.9,2286.8,0.08474072]
[1725693229797,4.37303,2286.8,2286.6,19.9]
[1725693230107,4.37303,2286.8,2286.7,1.52367431]
[1725693230282,4.37303,2286.8,2286.6,19.9]
[1725693230598,4.37303,2286.8,2286.7,1.52367622]
[1725693230765,4.3721,2287.3,2286.7,3.89645431]
[1725693230967,8.74503,2287.1,2286.8,4.08184556]
[1725693231175,4.37251,2287.1,2286.8,2.55824766]
[1725693231411,4.37251,2287.1,2286.9,0.25582477]
[1725693231916,8.74497,2287.1,2286.9,0.25582477]
[1725693232378,4.37246,2287.1,2286.9,0.25582477]
[1725693232571,4.37245,2287.1,2286.9,0.25582477]
[1725693233010,8.74491,2287.1,2286.9,0.25582477]
[1725693233723,4.37245,2287.1,2286.9,0.25582477]
[1725693235163,4.37254,2287.0,2286.9,0.25582477]
[1725693235501,4.37281,2286.9,2286.6,2.4708]
[1725693235706,4.37281,2286.9,2286.7,1.52361471]
[1725693236012,8.7452,2287.0,2286.6,2.55825034]
[1725693236315,4.37254,2287.0,2286.7,1.52363326]
[1725693236521,4.37227,2287.2,2286.8,4.48996081]
[1725693236686,4.37235,2287.1,2286.8,2.87898836]
[1725693236875,4.37254,2287.0,2286.9,19.9]
[1725693237311,8.74508,2287.0,2286.9,19.9]
[1725693237920,4.37254,2287.0,2286.9,19.9]
[1725693239602,4.37254,2287.0,2286.9,22.3708]
[1725693240437,4.37254,2287.0,2286.9,19.9]
[1725693244012,8.74508,2287.0,2286.9,19.9]
[1725693244507,8.74508,2287.0,2286.9,19.98326407]
[1725693246643,4.37254,2287.0,2286.9,19.98326407]
[1725693247504,8.74508,2287.0,2286.9,19.98326407]
[1725693247806,4.36996,2288.4,2287.0,2.4708]
[1725693248002,4.36833,2289.3,2288.6,4.36934]
[1725693248345,4.36806,2289.4,2288.6,4.36947]
[1725693248516,4.36766,2289.6,2288.7,4.53982329]
[1725693248721,4.36766,2289.6,2288.8,4.45635829]
[1725693249044,4.36857,2289.1,2288.9,0.08102221]
[1725693249244,4.36871,2289.0,2288.9,0.08102221]
[1725693249450,4.36871,2289.0,2288.5,2.4708]
[1725693249610,4.36871,2289.0,2288.9,0.08102221]
[1725693249809,4.36871,2289.0,2288.5,2.4708]
[1725693250001,4.36871,2289.0,2288.9,0.08102221]
[1725693250255,4.36871,2289.0,2288.5,2.4708]
[1725693250256,4.36892,2288.9,2288.5,2.4708]
[1725693250761,8.73796,2288.9,2288.4,3.89]
[1725693251059,4.36892,2288.9,2288.4,3.89]
[1725693251422,4.36892,2288.9,2288.4,3.97738632]
[1725693251733,4.36892,2288.9,2288.4,3.89]
[1725693252250,4.36892,2288.9,2288.4,3.97738632]
[1725693252613,4.36892,2288.9,2288.4,3.89]
[1725693253224,8.73801,2288.9,2288.4,3.89]
[1725693253743,4.36892,2288.9,2288.4,3.9773864]
[1725693254590,8.73801,2288.9,2288.4,3.9773864]
[1725693254879,4.36892,2288.9,2288.4,3.9773864]
[1725693255285,4.36872,2289.0,2288.4,3.89]
[1725693255459,2.3466,2289.4,2288.4,3.89]
[1725693255460,4.36937,2288.7,2288.4,3.89]
[1725693255667,4.36926,2288.8,2288.5,19.9]
[1725693255986,4.36931,2288.7,2288.5,19.9]
[1725693256500,4.36948,2288.6,2288.5,19.9]
[1725693256649,4.36931,2288.7,2288.5,19.9]
[1725693257262,4.36914,2288.8,2288.5,19.9]
[1725693258751,4.36879,2289.0,2288.5,19.9]
[1725693258948,4.36902,2288.9,2288.5,19.9]
[1725693259499,4.36902,2288.9,2288.6,0.07845363]
[1725693260379,4.36879,2289.0,2288.6,0.16583783]
[1725693260751,4.36879,2289.0,2288.7,19.9]
[1725693261198,4.36845,2289.2,2288.8,2.57505363]
[1725693261498,4.36845,2289.2,2288.9,19.9]
[1725693262203,4.36823,2289.3,2289.0,19.97845363]
[1725693263010,8.7362,2289.4,2289.0,19.97845363]
[1725693263586,4.36807,2289.4,2289.0,19.97845363]
[1725693263779,4.36821,2289.3,2289.0,19.97845363]
[1725693264299,4.36837,2289.2,2289.0,19.97845363]
[1725693266514,4.36806,2289.4,2289.0,19.97845363]
[1725693266714,4.36806,2289.4,2289.1,19.9]
[1725693267078,4.36833,2289.2,2289.1,19.9]
[1725693267402,4.36833,2289.2,2289.1,19.97845363]
[1725693269205,8.73666,2289.2,2289.1,19.97845363]
[1725693272778,8.73666,2289.2,2289.1,0.07845363]
[1725693273105,4.36882,2289.0,2288.7,19.9]
[1725693273292,8.73764,2289.0,2288.8,0.07794549]
[1725693273488,8.73782,2288.9,2288.7,19.9]
[1725693273688,4.3691,2288.8,2288.7,19.9]
[1725693274534,8.73791,2288.9,2288.7,19.97794549]
[1725693275597,4.3691,2288.8,2288.7,19.97794549]
[1725693276117,20.613801,2288.8,2288.7,0.07794549]
[1725693276298,8.74048,2288.2,2288.1,7.286]
[1725693276507,8.7406,2288.2,2288.1,0.07533503]
[1725693276707,13.11096,2288.2,2288.1,0.07533503]
[1725693276911,4.37062,2288.0,2287.9,19.89894573]
[1725693277113,8.74124,2288.0,2287.9,19.89894573]
[1725693280749,8.74124,2288.0,2287.4,7.286]
[1725693280750,4.37149,2287.6,2287.4,27.18494573]
[1725693280959,4.37149,2287.6,2287.1,19.89894573]
[1725693281111,4.37192,2287.4,2287.2,20.0778583]
[1725693281316,6.63463,2287.8,2287.2,19.89894573]
[1725693281652,4.37187,2287.4,2287.2,19.89894573]
[1725693281829,8.74375,2287.4,2287.2,19.89894573]
[1725693282028,4.37187,2287.4,2287.2,19.89894573]
[1725693284061,4.37196,2287.3,2287.2,19.89894573]
[1725693287280,4.37187,2287.4,2287.2,19.89894573]
[1725693287738,8.74375,2287.4,2287.2,19.89894573]
[1725693287940,8.74376,2287.4,2287.2,19.89894573]
[1725693288184,4.37187,2287.4,2287.2,19.89894573]
[1725693288336,8.74374,2287.4,2287.2,19.89894573]
[1725693288541,4.37187,2287.4,2287.2,19.89894573]
[1725693289479,4.37187,2287.4,2287.3,0.0788815]
[1725693289841,4.37187,2287.4,2287.2,19.89894573]
[1725693290183,4.37187,2287.4,2287.3,0.0794157]
[1725693290386,4.37187,2287.4,2287.2,19.89894573]
[1725693290541,4.37187,2287.4,2287.3,0.0794157]
[1725693290742,4.37187,2287.4,2287.3,19.89894573]
[1725693291045,4.37187,2287.4,2287.3,19.97836143]
[1725693294756,4.37159,2287.5,2287.3,19.97836143]
[1725693294957,4.37133,2287.7,2287.3,19.97836143]
[1725693295152,4.37131,2287.7,2287.3,19.97836143]
[1725693295569,4.37142,2287.6,2287.3,19.97836143]
[1725693295997,4.37131,2287.7,2287.3,19.97836143]
[1725693296199,4.3713,2287.7,2287.3,19.97836143]
[1725693296396,4.37129,2287.7,2287.4,2.4216]
[1725693296576,8.74258,2287.7,2287.4,2.4216]
[1725693296803,8.74258,2287.7,2287.5,0.0794157]
[1725693297005,4.37129,2287.7,2287.5,0.0794157]
[1725693298183,2.3473,2288.3,2287.5,4.4508657]
[1725693298400,4.37025,2288.2,2287.7,4.37118]
[1725693298708,4.37025,2288.2,2287.8,0.6374088]
[1725693298873,4.37065,2288.0,2287.6,19.89894573]
[1725693299091,8.7414,2288.0,2287.9,0.07918673]
[1725693299282,4.37085,2287.9,2287.6,19.89894573]
[1725693301194,4.37065,2288.0,2287.6,19.89894573]
[1725693301387,8.74139,2288.0,2287.6,19.89894573]
[1725693302133,4.37065,2288.0,2287.6,19.89894573]
[1725693302337,4.37102,2287.8,2287.6,19.89894573]
[1725693302492,4.37102,2287.8,2287.7,19.89894573]
[1725693303627,8.74146,2288.0,2287.7,19.89894573]
[1725693304125,4.82868503,2287.9,2287.7,19.89894573]
[1725693304433,8.74202,2287.8,2287.7,19.89894573]
[1725693305692,4.37132,2287.7,2287.4,19.89894573]
[1725693306091,4.37143,2287.6,2287.4,19.89894573]
[1725693306330,4.37132,2287.7,2287.4,19.89894573]
[1725693307833,4.37148,2287.6,2287.4,19.89894573]
[1725693308801,4.37179,2287.4,2287.2,19.89894573]
[1725693309126,4.37179,2287.4,2287.3,0.17929077]
[1725693309444,4.37159,2287.5,2287.3,0.17928868]
[1725693309601,4.37159,2287.5,2287.2,19.89894573]
[1725693309800,2.80509503,2287.9,2287.2,19.89894573]
[1725693310005,4.37107,2287.8,2287.3,7.40727995]
[1725693310244,4.37107,2287.8,2287.4,0.17923961]
[1725693310552,4.37107,2287.8,2287.3,6.84940096]
[1725693310843,4.37107,2287.8,2287.4,0.17924962]
[1725693311041,4.37107,2287.8,2287.3,8.83115096]
[1725693311200,4.37107,2287.8,2287.4,0.17926169]
[1725693311542,4.37107,2287.8,2287.3,8.7437]
[1725693311745,4.82875503,2287.9,2287.4,4.55092866]
[1725693312041,9.19972503,2287.9,2287.4,4.37167]
[1725693312241,9.19972503,2287.9,2287.3,8.74369]
[1725693312543,9.19972503,2287.9,2287.4,0.17926985]
[1725693312708,4.37102,2287.8,2287.3,4.45926808]
[1725693312904,4.37102,2287.8,2287.4,0.17923496]
[1725693313111,4.82875503,2287.9,2287.4,4.37163]
[1725693313346,0.45779503,2287.9,2287.6,4.37127]
[1725693313703,0.45779503,2287.9,2287.7,4.37118]
[1725693314355,0.45779503,2287.9,2287.7,4.37111]
[1725693314519,0.45779503,2287.9,2287.8,4.37101]
[1725693314723,0.45779503,2287.9,2287.8,28.64096573]
[1725693314922,0.45779503,2287.9,2287.8,29.19096573]
[1725693316254,0.45779503,2287.9,2287.8,33.2828412]
[1725693316561,4.23888092,2288.6,2288.1,4.37041]
[1725693316843,4.23888092,2288.6,2288.2,19.89894573]
[1725693317881,0.45764025,2288.9,2288.6,4.36937]
[1725693318057,0.45764025,2288.9,2288.7,19.89894573]
[1725693318347,2.3688,2289.1,2288.7,24.26819573]
[1725693318513,6.73733,2289.1,2288.7,19.89894573]
[1725693319549,6.73733,2289.1,2288.8,0.07766898]
[1725693320045,6.73733,2289.1,2288.7,19.89894573]
[1725693320253,2.3688,2289.1,2288.9,0.07708428]
[1725693320453,4.36817,2289.3,2288.8,4.36908]
[1725693320656,4.36817,2289.3,2289.0,0.07708428]
[1725693320822,0.45759861,2289.4,2289.0,24.26750573]
[1725693321025,0.45759861,2289.4,2289.2,4.3682]
[1725693321228,0.45759861,2289.4,2289.1,24.34441001]
[1725693321433,0.45759861,2289.4,2289.3,8.73628]
[1725693321650,0.45759861,2289.4,2289.3,37.31396282]
[1725693321960,0.45759861,2289.4,2289.3,44.4952623]
[1725693322317,2.3688,2291.0,2290.5,4.36585]
[1725693322522,4.36484,2291.1,2290.5,4.36574]
[1725693322825,4.36484,2291.1,2290.6,0.07325958]
[1725693323167,4.36547,2290.7,2290.6,0.07325958]
[1725693323666,4.36547,2290.7,2290.6,0.0723076]
[1725693323838,4.36547,2290.7,2290.4,19.89894573]
[1725693324034,4.36547,2290.7,2290.6,0.0723076]
[1725693324253,4.36526,2290.9,2290.6,0.0723076]
[1725693324433,4.36526,2290.9,2290.4,19.89894573]
[1725693324434,9.277929,2290.9,2290.4,19.89894573]
[1725693324760,4.36532,2290.8,2290.7,0.0723076]
[1725693325234,4.36532,2290.8,2290.4,19.89894573]
[1725693325436,4.912719,2290.9,2290.7,0.0723076]
[1725693325748,8.7308,2290.8,2290.7,0.0723076]
[1725693325961,4.36612,2290.4,2289.8,19.89894573]
[1725693326123,4.36657,2290.2,2289.7,19.89894573]
[1725693326327,4.36657,2290.2,2289.9,0.0723076]
[1725693326621,4.36657,2290.2,2289.7,19.89894573]
[1725693326622,4.803227,2290.2,2290.0,0.0723076]
[1725693326925,4.803227,2290.2,2289.7,19.89894573]
[1725693326926,4.36673,2290.1,2289.7,19.89894573]
[1725693327278,4.803217,2290.2,2289.8,0.0723076]
[1725693327450,4.36634,2290.3,2289.8,0.0723076]
[1725693328462,4.36643,2290.2,2289.8,0.0723076]
[1725693329487,4.36663,2290.1,2289.8,0.0723076]
[1725693329672,4.36643,2290.2,2289.8,0.0723076]
[1725693329673,4.36643,2290.2,2289.9,19.89894573]
[1725693330393,4.36643,2290.2,2290.0,0.0723076]
[1725693331052,5.239689,2290.2,2290.0,0.0723076]
[1725693333482,7.694789,2290.2,2290.0,0.0723076]
[1725693333815,5.239689,2290.2,2290.0,0.0723076]
[1725693334080,0.873259,2290.2,2290.0,0.0723076]
[1725693334276,4.36627,2290.3,2290.0,0.0723076]
[1725693334442,4.36614,2290.4,2290.0,0.0723076]
[1725693334649,4.36578,2290.6,2290.0,0.15964347]